bitfinex-derivatives/quotes_BTCF0:USTF0_20241223
["timestamp","ask_amount","ask_price","bid_price","bid_amount"]
[1734991328113,0.3608,94054.0,94040.0,0.14225129]
[1734991328310,0.3608,94054.0,94040.0,0.11966828]
[1734991328513,0.3608,94054.0,94044.0,0.05324]
[1734991329518,0.3608,94054.0,94040.0,0.12866828]
[1734991329917,0.3608,94054.0,94044.0,0.009]
[1734991331305,0.3608,94054.0,94044.0,0.011]
[1734991331917,0.3608,94054.0,94040.0,0.11966828]
[1734991332118,0.3608,94054.0,94044.0,0.006]
[1734991332623,0.3608,94054.0,94045.0,0.3608]
[1734991332827,0.3608,94054.0,94044.0,0.004]
[1734991333035,0.3608,94046.0,94044.0,0.004]
[1734991333316,0.1138,94045.0,94044.0,0.004]
[1734991333525,0.1138,94045.0,94044.0,0.002]
[1734991333710,0.1138,94045.0,94044.0,0.003]
[1734991334314,0.4746,94045.0,94044.0,0.002]
[1734991334614,0.1138,94045.0,94044.0,0.003]
[1734991334822,0.1138,94045.0,94044.0,0.001]
[1734991335424,0.1138,94045.0,94044.0,0.003]
[1734991338520,0.3608,94054.0,94044.0,0.003]
[1734991339916,0.3608,94054.0,94044.0,0.001]
[1734991340222,0.3608,94054.0,94044.0,0.003]
[1734991340532,0.3608,94045.0,94044.0,0.003]
[1734991341515,0.3608,94045.0,94044.0,0.001]
[1734991341713,0.3608,94045.0,94044.0,0.003]
[1734991342515,0.3608,94045.0,94044.0,0.002]
[1734991342717,0.3608,94045.0,94044.0,0.003]
[1734991346218,0.3608,94045.0,94040.0,0.03065999]
[1734991346530,0.3608,94045.0,94010.0,0.08900829]
[1734991346531,0.053247,94033.0,94024.0,0.053251]
[1734991346727,0.3608,94026.0,94013.0,0.31798055]
[1734991347030,0.3608,94015.0,94013.0,0.31798055]
[1734991347231,0.3608,94015.0,94013.0,0.36550199]
[1734991347724,0.3608,94015.0,94013.0,0.04752144]
[1734991347930,0.3608,94015.0,94003.0,0.25407526]
[1734991348118,0.3608,94015.0,94004.0,0.053263]
[1734991348320,0.3608,94015.0,94007.0,0.053261]
[1734991349015,0.3608,94015.0,94013.0,0.007]
[1734991349417,0.3608,94015.0,94013.0,0.016]
[1734991349829,0.3618,94015.0,94013.0,0.009]
[1734991350929,0.3618,94015.0,94007.0,0.069261]
[1734991351625,0.3608,94015.0,94013.0,0.015]
[1734991352124,0.3608,94015.0,94013.0,0.006]
[1734991352429,0.3608,94015.0,94007.0,0.068261]
[1734991352730,0.3608,94015.0,94013.0,0.009]
[1734991353328,0.414057,94015.0,94013.0,0.014]
[1734991353821,0.053265,94002.0,94000.0,0.35407526]
[1734991354027,0.3608,94001.0,94000.0,0.1]
[1734991355022,0.3608,94001.0,94000.0,0.108]
[1734991355423,0.3608,94001.0,94000.0,0.117]
[1734991355619,0.3608,94001.0,94000.0,0.16346314]
[1734991355826,0.3618,94001.0,94000.0,0.16346314]
[1734991356922,0.4776,94001.0,94000.0,0.16346314]
[1734991357327,0.4776,94001.0,94000.0,0.15446314]
[1734991357524,0.4776,94001.0,94000.0,0.15746314]
[1734991358014,0.3608,94001.0,94000.0,0.14946314]
[1734991358223,0.3608,94001.0,94000.0,0.15046314]
[1734991360324,0.36136001,94015.0,94000.0,0.14746314]
[1734991360525,0.3608,94015.0,94008.0,0.053261]
[1734991361232,0.3608,94015.0,94005.0,0.06826929]
[1734991361830,0.3658,94015.0,94008.0,0.001]
[1734991362336,0.3668,94015.0,94008.0,0.001]
[1734991362634,0.006,94015.0,94008.0,0.001]
[1734991363043,0.007,94015.0,94008.0,0.054261]
[1734991363237,0.002,94015.0,94008.0,0.053261]
[1734991363530,0.005,94015.0,94008.0,0.053261]
[1734991363928,0.006,94015.0,94010.0,0.05326]
[1734991364128,0.006,94015.0,94014.0,0.053258]
[1734991364437,0.36136001,94020.0,94014.0,0.053258]
[1734991364635,0.36136001,94020.0,94011.0,0.2282]
[1734991364636,0.3608,94020.0,94005.0,0.06826929]
[1734991365024,0.3608,94007.0,93994.0,0.053269]
[1734991365226,0.1176,94006.0,93998.0,0.25407526]
[1734991366227,0.1176,94006.0,94000.0,0.07246314]
[1734991366421,0.1176,94006.0,94000.0,0.07346314]
[1734991367025,0.1176,94006.0,94000.0,0.07646314]
[1734991367625,0.1186,94006.0,94000.0,0.07346314]
[1734991368629,0.1186,94006.0,94000.0,0.07246314]
[1734991369032,0.1186,94006.0,94001.0,0.053264]
[1734991369938,0.1186,94006.0,94000.0,0.07246314]
[1734991370138,0.1176,94006.0,94000.0,0.07246314]
[1734991370433,0.1196,94006.0,94000.0,0.07246314]
[1734991370935,0.1206,94006.0,94000.0,0.07246314]
[1734991371436,0.1196,94006.0,94000.0,0.07246314]
[1734991372435,0.1186,94006.0,94000.0,0.07246314]
[1734991373441,0.1176,94006.0,94000.0,0.07246314]
[1734991373740,0.1186,94006.0,94000.0,0.07246314]
[1734991375742,0.21344735,94006.0,94000.0,0.07246314]
[1734991376243,0.21344735,94006.0,93996.0,0.3058054]
[1734991377034,0.09484735,94003.0,94000.0,0.25407526]
[1734991378141,0.09584735,94003.0,94000.0,0.25407526]
[1734991378444,0.09484735,94001.0,94000.0,0.053265]
[1734991378844,0.09484735,94001.0,93996.0,0.3608]
[1734991379045,0.09484735,94001.0,93998.0,0.053266]
[1734991379254,0.09484735,94002.0,93998.0,0.053266]
[1734991379536,0.09484735,94002.0,93996.0,0.36539946]
[1734991379936,0.09484735,94002.0,94001.0,0.053265]
[1734991380541,0.0856976,94002.0,94001.0,0.053265]
[1734991381036,0.0866976,94002.0,94001.0,0.053265]
[1734991381235,0.001,94002.0,94001.0,0.054265]
[1734991381438,0.099488,94011.0,94010.0,0.05326]
[1734991381633,0.099488,94011.0,94001.0,0.09000829]
[1734991381838,0.3608,94010.0,94001.0,0.001]
[1734991382043,0.5977,94010.0,94001.0,0.001]
[1734991382249,0.053261,94008.0,94001.0,0.001]
[1734991382543,0.053262,94006.0,94001.0,0.001]
[1734991382745,0.053262,94006.0,94001.0,0.003]
[1734991383343,0.053262,94006.0,94001.0,0.002]
[1734991383847,0.1151,94009.0,94001.0,0.25739177]
[1734991384746,0.1151,94009.0,94001.0,0.25639177]
[1734991385044,0.1151,94009.0,94001.0,0.25739177]
[1734991385241,0.1151,94009.0,94001.0,0.002]
[1734991385647,0.1151,94009.0,94001.0,0.001]
[1734991386352,0.36136001,94010.0,94008.0,0.05326]
[1734991386645,0.3608,94019.0,93999.0,0.08900829]
[1734991386646,0.14996269,94013.0,94012.0,0.053258]
[1734991386842,0.14996269,94013.0,94009.0,0.08900829]
[1734991387247,0.14996269,94013.0,94011.0,0.053259]
[1734991388148,0.3608,94019.0,94011.0,0.053259]
[1734991388340,0.3608,94019.0,94009.0,0.08900829]
[1734991388542,0.3608,94019.0,94014.0,0.053257]
[1734991389542,0.3608,94019.0,94009.0,0.08900829]
[1734991389947,0.3608,94019.0,94008.0,0.05326]
[1734991390151,0.3638,94019.0,94008.0,0.05326]
[1734991390544,0.3638,94019.0,94007.0,0.31798055]
[1734991390742,0.3638,94019.0,94005.0,0.67878055]
[1734991390939,0.3638,94019.0,94006.0,0.053262]
[1734991391143,0.053257,94014.0,94005.0,0.68010055]
[1734991391448,0.170858,94013.0,94005.0,0.31798055]
[1734991391649,0.05326,94010.0,94005.0,0.36511527]
[1734991392243,0.05326,94010.0,94005.0,0.04713472]
[1734991392442,0.05326,94010.0,93998.0,0.31798055]
[1734991393256,0.05626,94010.0,93998.0,0.31798055]
[1734991393448,0.05626,94010.0,93995.0,0.31798055]
[1734991393449,0.3608,94007.0,93995.0,0.31798055]
[1734991393642,0.1191,94006.0,93997.0,0.08900829]
[1734991393838,0.1191,94006.0,93998.0,0.053266]
[1734991394451,0.1191,94006.0,93999.0,0.053266]
[1734991394750,0.1191,94006.0,93997.0,0.08900829]
[1734991394751,0.1191,94006.0,93995.0,0.002]
[1734991395051,0.1191,94006.0,93996.0,0.053268]
[1734991395753,0.1191,94006.0,93995.0,0.001]
[1734991396150,0.1191,94006.0,93993.0,0.31798055]
[1734991396454,0.1191,94006.0,93994.0,0.053269]
[1734991396845,0.1191,94006.0,93995.0,0.001]
[1734991397352,0.1191,94006.0,93994.0,0.053269]
[1734991398059,0.1191,94006.0,93995.0,0.001]
[1734991398446,0.053262,94005.0,93995.0,0.001]
[1734991398845,0.053262,94005.0,93994.0,0.001]
[1734991399054,0.053262,94005.0,93995.0,0.001]
[1734991400047,0.1191,94006.0,93995.0,0.001]
[1734991400248,0.053264,94003.0,93995.0,0.001]
[1734991400451,0.414067,93998.0,93995.0,0.002]
[1734991400660,0.053263,94004.0,93995.0,0.002]
[1734991401257,0.1191,94006.0,93995.0,0.002]
[1734991401458,0.35049529,94007.0,94006.0,0.053262]
[1734991401649,0.27512364,94007.0,94006.0,0.053262]
[1734991402046,0.3608,94015.0,93996.0,0.81050829]
[1734991402251,0.3608,94015.0,93996.0,0.7215]
[1734991402555,0.053266,93999.0,93996.0,0.3608]
[1734991402754,0.1246,93998.0,93996.0,0.3608]
[1734991403259,0.1246,93998.0,93997.0,0.24698918]
[1734991404948,0.1246,93998.0,93996.0,0.3618]
[1734991406055,0.1246,93998.0,93996.0,0.3608]
[1734991406446,0.1246,93998.0,93990.0,0.05270795]
[1734991406646,0.1246,93998.0,93996.0,0.001]
[1734991407249,0.36136001,94007.0,93996.0,0.001]
[1734991407450,0.3608,94007.0,93996.0,0.05556936]
[1734991407648,0.3608,94007.0,93996.0,0.001]
[1734991407849,0.3608,94007.0,93997.0,0.08900829]
[1734991409241,0.353837,94007.0,94002.0,0.053264]
[1734991409557,0.353837,94007.0,93997.0,0.20740829]
[1734991410355,0.003,94007.0,93997.0,0.20740829]
[1734991410650,0.003,94007.0,94000.0,0.053265]
[1734991410858,0.001,94007.0,94000.0,0.053265]
[1734991411064,0.121,94013.0,94000.0,0.053265]
[1734991411353,0.121,94013.0,93997.0,0.18667329]
[1734991411951,0.121,94013.0,94000.0,0.053265]
[1734991412152,0.121,94013.0,93997.0,0.18667329]
[1734991412344,0.001,94007.0,93997.0,0.1184]
[1734991412947,0.121,94013.0,93997.0,0.1184]
[1734991413253,0.122,94013.0,93997.0,0.1184]
[1734991413561,0.3608,94037.0,94023.0,0.053251]
[1734991413857,0.1136,94034.0,94023.0,0.053251]
[1734991414053,0.1136,94034.0,94021.0,0.3608]
[1734991414054,0.1136,94034.0,94026.0,0.05325]
[1734991414258,0.1136,94034.0,94024.0,0.08900829]
[1734991416055,0.1206,94034.0,94024.0,0.09000829]
[1734991416244,0.1206,94034.0,94024.0,0.01600829]
[1734991416447,0.1206,94034.0,94028.0,0.053249]
[1734991416643,0.012,94034.0,94033.0,0.053246]
[1734991417154,0.012,94034.0,94029.0,0.414048]
[1734991417355,0.007,94034.0,94031.0,0.053247]
[1734991417557,0.012,94034.0,94031.0,0.053247]
[1734991417749,0.012,94034.0,94032.0,0.053246]
[1734991418057,0.012,94034.0,94033.0,0.31349654]
[1734991418263,0.013,94034.0,94033.0,0.31349654]
[1734991418557,0.013,94034.0,94033.0,0.31449654]
[1734991419151,0.013,94034.0,94033.0,0.1234]
[1734991419857,0.014,94034.0,94033.0,0.1234]
[1734991420255,0.3548,94047.0,94033.0,0.1234]
[1734991420558,0.007,94034.0,94033.0,0.1244]
[1734991421359,0.3548,94047.0,94033.0,0.0494]
[1734991421657,0.3588,94047.0,94033.0,0.001]
[1734991422650,0.3598,94047.0,94033.0,0.05478729]
[1734991423557,0.3558,94047.0,94033.0,0.05478729]
[1734991425766,0.3558,94047.0,94046.0,0.053238]
[1734991425963,0.001,94047.0,94046.0,0.053238]
[1734991426176,0.001,94047.0,94046.0,0.414038]
[1734991426466,0.001,94047.0,94046.0,0.340038]
[1734991427169,0.001,94047.0,94046.0,0.341038]
[1734991427756,0.001,94047.0,94046.0,0.340038]
[1734991428159,0.1162,94055.0,94046.0,0.340038]
[1734991428367,0.114,94063.0,94054.0,0.053234]
[1734991428963,0.114,94063.0,94056.0,0.3608]
[1734991429166,0.27424881,94076.0,94056.0,0.3608]
[1734991429367,0.15934881,94076.0,94066.0,0.44980829]
[1734991429559,0.15934881,94076.0,94071.0,0.053224]
[1734991429872,0.15934881,94083.0,94071.0,0.053224]
[1734991430357,0.15934881,94083.0,94067.0,0.1233]
[1734991430758,0.003,94076.0,94067.0,0.1233]
[1734991431364,0.1175,94084.0,94067.0,0.0493]
[1734991431560,0.001,94076.0,94067.0,0.0493]
[1734991431961,0.1166,94083.0,94067.0,0.0493]
[1734991432161,0.1166,94083.0,94067.0,0.0503]
[1734991432162,0.001,94076.0,94067.0,0.0503]
[1734991433864,0.004,94076.0,94067.0,0.001]
[1734991434059,0.3608,94069.0,94067.0,0.05382768]
[1734991434258,0.3608,94069.0,94048.0,0.3608]
[1734991434465,0.414031,94059.0,94048.0,0.3608]
[1734991434661,0.282332,94058.0,94048.0,0.3608]
[1734991435059,0.282332,94058.0,94048.0,0.41274385]
[1734991435261,0.2291,94058.0,94048.0,0.41274385]
[1734991435459,0.3608,94049.0,94048.0,0.05194385]
[1734991435660,0.3608,94049.0,94048.0,0.009]
[1734991436460,0.3608,94049.0,94040.0,0.02400829]
[1734991436659,0.3608,94049.0,94040.0,0.07782629]
[1734991436861,0.3608,94049.0,94048.0,0.004]
[1734991437261,0.3608,94049.0,94048.0,0.013]
[1734991437566,0.3608,94049.0,94048.0,0.009]
[1734991437773,0.3608,94049.0,94040.0,0.053818]
[1734991437774,0.3608,94049.0,94040.0,0.055818]
[1734991437961,0.3608,94049.0,94040.0,0.058818]
[1734991438363,0.3608,94041.0,94040.0,0.053818]
[1734991438563,0.053246,94033.0,94020.0,0.3608]
[1734991438771,0.3608,94029.0,94020.0,0.3608]
[1734991438970,0.3608,94029.0,94015.0,0.19109654]
[1734991439172,0.053252,94023.0,94015.0,0.19109654]
[1734991439468,0.053252,94022.0,94015.0,0.24430224]
[1734991439663,0.414055,94017.0,94015.0,0.24430224]
[1734991440267,0.414055,94017.0,94015.0,0.0532057]
[1734991440268,0.1143,94016.0,94015.0,0.0532057]
[1734991440569,0.1143,94016.0,94003.0,0.00010254]
[1734991440975,0.1143,94016.0,94015.0,0.001]
[1734991441578,0.1143,94016.0,94003.0,0.05337738]
[1734991441874,0.1143,94016.0,94003.0,0.05637738]
[1734991443171,0.414059,94009.0,94003.0,0.05337738]
[1734991443372,0.053261,94007.0,94003.0,0.05327484]
[1734991443669,0.053261,94007.0,93994.0,0.19109654]
[1734991443873,0.053261,94007.0,94003.0,0.006]
[1734991444179,0.2341,94008.0,94003.0,0.009]
[1734991444180,0.053262,94005.0,94003.0,0.009]
[1734991444363,0.053262,94005.0,94003.0,0.003]
[1734991444570,0.053262,94005.0,94003.0,0.009]
[1734991444875,0.053262,94005.0,94003.0,0.006]
[1734991445063,0.1164,94008.0,94003.0,0.006]
[1734991445267,0.15934881,94029.0,94003.0,0.006]
[1734991445268,0.1133,94028.0,94007.0,0.05326]
[1734991445583,0.002,94005.0,94001.0,0.3608]
[1734991445974,0.1222,94021.0,94001.0,0.3608]
[1734991446174,0.1222,94021.0,94004.0,0.053262]
[1734991446472,0.1222,94021.0,94007.0,0.08900829]
[1734991446775,0.1222,94021.0,94009.0,0.053259]
[1734991448077,0.1222,94021.0,94009.0,0.055259]
[1734991448277,0.1222,94021.0,94009.0,0.057259]
[1734991449175,0.33776603,94017.0,94009.0,0.057259]
[1734991449377,0.1222,94021.0,94016.0,0.3608]
[1734991449965,0.1222,94021.0,94009.0,0.057259]
[1734991449966,0.1222,94021.0,94012.0,0.3608]
[1734991450171,0.053253,94020.0,94012.0,0.3608]
[1734991450571,0.053253,94020.0,94016.0,0.001]
[1734991451476,0.053253,94020.0,94012.0,0.05572206]
[1734991451669,0.053253,94020.0,94012.0,0.05420206]
[1734991451865,0.004,94020.0,94001.0,0.3608]
[1734991452079,0.053254,94019.0,94001.0,0.41337169]
[1734991453181,0.053254,94019.0,94001.0,0.46663569]
[1734991453379,0.004,94020.0,94001.0,0.46663569]
[1734991454078,0.1222,94021.0,94001.0,0.46863569]
[1734991454385,0.1222,94021.0,94010.0,0.08900829]
[1734991454677,0.3608,94022.0,94019.0,0.053253]
[1734991456079,0.3608,94022.0,94013.0,0.3608]
[1734991456282,0.3608,94022.0,94000.0,0.19109654]
[1734991456479,0.05326,94008.0,94001.0,0.05557169]
[1734991456779,0.3608,94006.0,94001.0,0.05257169]
[1734991457080,0.3608,94006.0,94000.0,0.19109654]
[1734991457468,0.3608,94006.0,94000.0,0.05341352]
[1734991457668,0.3608,94006.0,94001.0,0.002]
[1734991457967,0.053263,94002.0,94001.0,0.002]
[1734991458171,0.053264,94001.0,94000.0,0.002]
[1734991458574,0.3608,94006.0,94001.0,0.001]
[1734991458784,0.053262,94004.0,94001.0,0.001]
[1734991459284,0.053262,94004.0,94000.0,0.003]
[1734991459789,0.053262,94004.0,94001.0,0.001]
[1734991460077,0.053262,94004.0,94001.0,0.002]
[1734991460284,0.053262,94004.0,94001.0,0.001]
[1734991460872,0.053262,94004.0,94001.0,0.002]
[1734991462271,0.3608,94006.0,94001.0,0.002]
[1734991462986,0.053263,94003.0,94001.0,0.002]
[1734991463486,0.053263,94003.0,94001.0,0.001]
[1734991463682,0.053263,94003.0,94001.0,0.002]
[1734991464686,0.3608,94006.0,93977.0,0.053277]
[1734991464687,0.3608,94002.0,93977.0,0.053277]
[1734991464884,0.3608,93982.0,93978.0,0.24423287]
[1734991465191,0.053275,93981.0,93978.0,0.24423287]
[1734991465387,0.053275,93981.0,93978.0,0.05313633]
[1734991465684,0.3608,93982.0,93975.0,0.19109654]
[1734991465893,0.3608,93982.0,93978.0,0.053277]
[1734991466185,0.053271,93988.0,93978.0,0.053277]
[1734991466387,0.053271,93988.0,93975.0,0.22411016]
[1734991466889,0.001,93982.0,93975.0,0.05373662]
[1734991467081,0.001,93982.0,93981.0,0.3608]
[1734991467285,0.3608,93990.0,93981.0,0.3608]
[1734991468288,0.001,93982.0,93981.0,0.3608]
[1734991468586,0.001,93982.0,93981.0,0.61575727]
[1734991469676,0.001,93982.0,93981.0,0.3618]
[1734991469882,0.3608,93990.0,93981.0,0.3628]
[1734991470082,0.3598,93990.0,93981.0,0.3628]
[1734991470387,0.3598,93990.0,93987.0,0.053271]
[1734991470590,0.3598,93990.0,93981.0,0.3618]
[1734991470591,0.33492572,93999.0,93990.0,0.05327]
[1734991470790,0.33492572,93999.0,93991.0,0.1091]
[1734991471183,0.12703295,94004.0,93991.0,0.1091]
[1734991471383,0.12703295,94004.0,93993.0,0.3608]
[1734991471998,0.12703295,94004.0,94003.0,0.414063]
[1734991472382,0.10597295,94012.0,94005.0,0.053261]
[1734991472795,0.10597295,94012.0,94003.0,0.3608]
[1734991473987,0.006,94012.0,94005.0,0.001]
[1734991474186,0.3608,94008.0,94005.0,0.001]
[1734991474591,0.3608,94008.0,94003.0,0.001]
[1734991474894,0.4792,94007.0,94003.0,0.002]
[1734991475194,0.5985,94007.0,93997.0,0.25489668]
[1734991475389,0.3608,93998.0,93997.0,0.25489668]
[1734991476391,0.3608,93998.0,93997.0,0.18089668]
[1734991476691,0.3608,93998.0,93982.0,0.18089668]
[1734991476893,0.3628,93998.0,93984.0,0.053273]
[1734991477899,0.3608,93998.0,93984.0,0.053273]
[1734991478086,0.3608,93998.0,93984.0,0.055273]
[1734991478488,0.1169,93997.0,93984.0,0.055273]
[1734991479192,0.1169,93997.0,93988.0,0.053271]
[1734991480698,0.1169,93997.0,93988.0,0.055271]
[1734991480897,0.1169,93997.0,93988.0,0.002]
[1734991481085,0.1169,93997.0,93988.0,0.003]
[1734991482301,0.1169,93997.0,93988.0,0.3638]
[1734991482800,0.1169,93997.0,93988.0,0.003]
[1734991483215,0.3608,93994.0,93988.0,0.003]
[1734991485611,0.3608,93994.0,93988.0,0.001]
[1734991485812,0.3608,93994.0,93988.0,0.003]
[1734991487719,0.053269,93992.0,93988.0,0.003]
[1734991488020,0.053271,93989.0,93988.0,0.003]
[1734991489020,0.414071,93989.0,93988.0,0.003]
[1734991489219,0.414071,93989.0,93988.0,0.002]
[1734991489520,0.414071,93989.0,93988.0,0.003]
[1734991489914,0.3608,93989.0,93988.0,0.003]
[1734991490113,0.3608,93991.0,93988.0,0.003]
[1734991491719,0.41407,93991.0,93988.0,0.003]
[1734991491916,0.053271,93989.0,93988.0,0.003]
[1734991492309,0.05327,93990.0,93988.0,0.003]
[1734991492505,0.3608,93991.0,93988.0,0.003]
[1734991493010,0.3608,93991.0,93988.0,0.002]
[1734991493208,0.3608,93991.0,93988.0,0.003]
[1734991493507,0.3608,93991.0,93988.0,0.001]
[1734991493704,0.3608,93991.0,93988.0,0.003]
[1734991494109,0.053271,93989.0,93988.0,0.003]
[1734991494724,0.053271,93989.0,93970.0,0.40816234]
[1734991494725,0.053271,93989.0,93970.0,0.31915405]
[1734991495020,0.3608,93991.0,93970.0,0.31915405]
[1734991495021,0.3608,93971.0,93970.0,0.31915405]
[1734991495207,0.414081,93971.0,93970.0,0.37364445]
[1734991495412,0.053286,93961.0,93960.0,0.38305666]
[1734991495613,0.414086,93961.0,93960.0,0.38157666]
[1734991495810,0.414086,93961.0,93960.0,0.31906959]
[1734991496819,0.3608,93961.0,93960.0,0.31906959]
[1734991497023,0.3618,93961.0,93960.0,0.33406959]
[1734991497321,0.3618,93961.0,93960.0,0.015]
[1734991498221,0.001,93961.0,93960.0,0.068287]
[1734991498610,0.001,93961.0,93960.0,0.015]
[1734991499012,0.001,93961.0,93960.0,0.068287]
[1734991500013,0.3608,93971.0,93960.0,0.068287]
[1734991500014,0.3608,93971.0,93960.0,0.006]
[1734991500213,0.001,93961.0,93960.0,0.015]
[1734991500723,0.001,93961.0,93960.0,0.068287]
[1734991500917,0.001,93961.0,93960.0,0.015]
[1734991501110,0.09534656,93968.0,93960.0,0.015]
[1734991501111,0.09534656,93968.0,93966.0,0.053283]
[1734991501414,0.08004756,93968.0,93967.0,0.645383]
[1734991501811,0.07304756,93968.0,93967.0,0.645383]
[1734991502219,0.15934881,93984.0,93967.0,0.5921]
[1734991502418,0.053271,93989.0,93970.0,0.14228929]
[1734991502618,0.053271,93989.0,93971.0,0.05328]
[1734991502823,0.053274,93984.0,93970.0,0.08900829]
[1734991503027,0.15934881,93992.0,93976.0,0.3608]
[1734991503214,0.12669616,93992.0,93980.0,0.08900829]
[1734991503520,0.12669616,93992.0,93984.0,0.3608]
[1734991503709,0.12669616,93992.0,93976.0,0.3608]
[1734991504114,0.3608,93995.0,93980.0,0.08900829]
[1734991504514,0.3608,93995.0,93980.0,0.14228429]
[1734991504915,0.3608,93995.0,93980.0,0.08900829]
[1734991505225,0.3608,93995.0,93985.0,0.053273]
[1734991505424,0.3608,93995.0,93986.0,0.053272]
[1734991505725,0.3608,93995.0,93980.0,0.09000829]
[1734991505726,0.3608,93995.0,93987.0,0.3608]
[1734991506123,0.3618,93995.0,93987.0,0.3608]
[1734991506323,0.3618,93995.0,93980.0,0.007]
[1734991506625,0.053272,93986.0,93985.0,0.003]
[1734991506819,0.414072,93986.0,93985.0,0.003]
[1734991507516,0.414072,93986.0,93976.0,0.0519565]
[1734991507713,0.053281,93972.0,93965.0,0.38157666]
[1734991507920,0.3608,93966.0,93965.0,0.38157666]
[1734991509125,0.053281,93972.0,93965.0,0.38157666]
[1734991509126,0.3608,93977.0,93967.0,0.053283]
[1734991509326,0.3608,93977.0,93968.0,0.053283]
[1734991509526,0.3608,93977.0,93972.0,0.05328]
[1734991510025,0.3608,93977.0,93975.0,0.053278]
[1734991510223,0.04989511,93976.0,93967.0,0.38847233]
[1734991510527,0.04989511,93975.0,93967.0,0.20705]
[1734991510724,0.3608,93977.0,93967.0,0.20705]
[1734991510725,0.04989511,93974.0,93967.0,0.20705]
[1734991511029,0.04989511,93973.0,93972.0,0.05328]
[1734991511224,0.02122162,93973.0,93972.0,0.05328]
[1734991512428,0.02122162,93973.0,93972.0,0.05528]
[1734991512822,0.02122162,93973.0,93972.0,0.002]
[1734991513023,0.02122162,93973.0,93972.0,0.003]
[1734991514126,0.3608,93976.0,93972.0,0.0136901]
[1734991514333,0.3608,93976.0,93973.0,0.0106901]
[1734991514627,0.3608,93976.0,93974.0,0.0106901]
[1734991514822,0.3608,93976.0,93975.0,0.01069036]
[1734991515329,0.3608,93976.0,93975.0,0.02232508]
[1734991516323,0.3608,93976.0,93975.0,0.02332508]
[1734991517129,0.3608,93976.0,93975.0,0.01169036]
[1734991518319,0.3608,93976.0,93975.0,0.06565391]
[1734991518533,0.3608,93976.0,93975.0,0.06446846]
[1734991518719,0.3608,93976.0,93975.0,0.06546846]
[1734991519328,0.3608,93976.0,93975.0,0.06446846]
[1734991519926,0.3618,93976.0,93975.0,0.06446846]
[1734991522137,0.415078,93976.0,93975.0,0.06446846]
[1734991522636,0.053282,93970.0,93954.0,0.38157666]
[1734991522837,0.3608,93957.0,93955.0,0.02738276]
[1734991523039,0.3608,93957.0,93956.0,0.02738276]
[1734991523241,0.3608,93957.0,93956.0,0.01053183]
[1734991523937,0.3608,93957.0,93954.0,0.42779502]
[1734991524133,0.3608,93957.0,93955.0,0.0105427]
[1734991524442,0.3608,93957.0,93956.0,0.0105427]
[1734991524941,0.3608,93957.0,93956.0,0.0135427]
[1734991525437,0.3618,93957.0,93956.0,0.0195427]
[1734991527126,0.3618,93957.0,93956.0,0.01939528]
[1734991527531,0.3618,93957.0,93956.0,0.0193964]
[1734991529041,0.3618,93957.0,93956.0,0.01939397]
[1734991531144,0.001,93957.0,93956.0,0.01939397]
[1734991531340,0.33651339,93965.0,93956.0,0.01939397]
[1734991531542,0.19139564,93984.0,93956.0,0.01939397]
[1734991531543,0.2354,93981.0,93967.0,0.053283]
[1734991531850,0.2354,93981.0,93968.0,0.01039397]
[1734991532041,0.19139564,93984.0,93973.0,0.053279]
[1734991532340,0.3608,93986.0,93974.0,0.01037251]
[1734991532542,0.3490267,93976.0,93975.0,0.06365151]
[1734991532747,0.29975671,93976.0,93975.0,0.07528927]
[1734991532948,0.3608,93995.0,93977.0,0.053277]
[1734991533131,0.3608,93995.0,93980.0,0.08900829]
[1734991533331,0.3608,93995.0,93981.0,0.02201027]
[1734991533535,0.48808275,93995.0,93982.0,0.07528527]
[1734991533735,0.48808275,93995.0,93983.0,0.01037251]
[1734991533942,0.48808275,93995.0,93984.0,0.01037251]
[1734991534140,0.48808275,93995.0,93985.0,0.01037251]
[1734991534334,0.48808275,93995.0,93980.0,0.14228429]
[1734991534539,0.49008275,93995.0,93981.0,0.01035729]
[1734991534741,0.3628,93995.0,93982.0,0.02201529]
[1734991534940,0.3678,93995.0,93983.0,0.02201529]
[1734991535146,0.3658,93995.0,93984.0,0.02201529]
[1734991535330,0.3678,93995.0,93985.0,0.01035729]
[1734991535535,0.3678,93995.0,93980.0,0.13399411]
[1734991535536,0.3628,93995.0,93986.0,0.01035729]
[1734991535738,0.3628,93995.0,93982.0,0.053275]
[1734991536042,0.3628,93995.0,93983.0,0.02200292]
[1734991536239,0.3628,93995.0,93984.0,0.02200288]
[1734991536540,0.3628,93995.0,93985.0,0.02199521]
[1734991536742,0.3608,93995.0,93980.0,0.13599411]
[1734991537040,0.3608,93995.0,93983.0,0.054274]
[1734991537245,0.3608,93995.0,93983.0,0.30916277]
[1734991537544,0.3608,93995.0,93983.0,0.30816277]
[1734991538146,0.3608,93995.0,93983.0,0.30916277]
[1734991538444,0.3608,93995.0,93983.0,0.31016277]
[1734991538854,0.3608,93995.0,93983.0,0.25688877]
[1734991539139,0.3608,94014.0,93987.0,0.3608]
[1734991539356,0.3608,94014.0,94002.0,0.08900829]
[1734991539544,0.15913767,94010.0,94006.0,0.3608]
[1734991539940,0.15913767,94010.0,94002.0,0.44980829]
[1734991540850,0.1176,94019.0,94002.0,0.44980829]
[1734991540851,0.3608,94044.0,94006.0,0.001]
[1734991541036,0.3608,94057.0,94006.0,0.001]
[1734991541037,0.3487,94047.0,94032.0,0.3608]
[1734991541236,0.2322,94047.0,94040.0,0.14225029]